[Event "*** Titled Tuesday Blitz"]
[Site "Chess.com"]
[Date "2019.03.05"]
[Round "2"]
[White "Grieve72"]
[Black "LastHeroJr"]
[Result "1/2-1/2"]
[WhiteElo "2344"]
[BlackElo "2533"]
[TimeControl "180+2"]
[EndTime "13:30:13 PST"]
[Termination "Game drawn by 50-move rule"]

1. d4 {[%clk 0:03:01.9]} 1... Nf6 {[%clk 0:02:59.8]} 2. Bg5 {[%clk 0:03:02.6]}
2... d5 {[%clk 0:03:00.5]} 3. e3 {[%clk 0:03:00.9]} 3... c5 {[%clk 0:02:58.2]}
4. c3 {[%clk 0:02:53.8]} 4... Nc6 {[%clk 0:02:56.8]} 5. Nd2 {[%clk 0:02:53.4]}
5... Bg4 {[%clk 0:02:46.6]} 6. Qb3 {[%clk 0:02:49.5]} 6... Qb6 {[%clk
0:02:41.3]} 7. h3 {[%clk 0:02:36.1]} 7... Bf5 {[%clk 0:02:27.1]} 8. Ngf3 {[%clk
0:02:24.2]} 8... e6 {[%clk 0:02:20.4]} 9. Bxf6 {[%clk 0:02:11.9]} 9... gxf6
{[%clk 0:02:21]} 10. g4 {[%clk 0:02:06.2]} 10... Bg6 {[%clk 0:02:13.5]} 11. Nh4
{[%clk 0:02:04.8]} 11... h5 {[%clk 0:02:04.6]} 12. Bg2 {[%clk 0:01:24.3]} 12...
Be7 {[%clk 0:02:03]} 13. O-O-O {[%clk 0:01:10.3]} 13... c4 {[%clk 0:02:02.5]}
14. Qxb6 {[%clk 0:01:10.3]} 14... axb6 {[%clk 0:02:04.4]} 15. Nxg6 {[%clk
0:01:03.3]} 15... fxg6 {[%clk 0:02:06.3]} 16. a3 {[%clk 0:00:56.8]} 16... Kf7
{[%clk 0:02:07.4]} 17. e4 {[%clk 0:00:52.1]} 17... Rad8 {[%clk 0:02:04.8]} 18.
f4 {[%clk 0:00:46.9]} 18... hxg4 {[%clk 0:02:03]} 19. hxg4 {[%clk 0:00:47]}
19... Rxh1 {[%clk 0:02:04.9]} 20. Rxh1 {[%clk 0:00:46.5]} 20... Kg7 {[%clk
0:02:05.9]} 21. f5 {[%clk 0:00:31.5]} 21... gxf5 {[%clk 0:02:04.7]} 22. gxf5
{[%clk 0:00:24.3]} 22... dxe4 {[%clk 0:02:02.3]} 23. Bxe4 {[%clk 0:00:16.4]}
23... e5 {[%clk 0:01:59.8]} 24. Nxc4 {[%clk 0:00:08.2]} 24... exd4 {[%clk
0:02:00.3]} 25. Bxc6 {[%clk 0:00:04.5]} 25... bxc6 {[%clk 0:02:02.1]} 26. cxd4
{[%clk 0:00:05.3]} 26... Rxd4 {[%clk 0:02:04]} 27. Nxb6 {[%clk 0:00:06.3]} 27...
Bc5 {[%clk 0:02:02]} 28. Na8 {[%clk 0:00:03.4]} 28... Rd7 {[%clk 0:01:58]} 29.
b4 {[%clk 0:00:02.2]} 29... Be3+ {[%clk 0:01:57.2]} 30. Kc2 {[%clk 0:00:03.2]}
30... Ra7 {[%clk 0:01:57.3]} 31. Re1 {[%clk 0:00:04.2]} 31... Rxa3 {[%clk
0:01:58.1]} 32. Nc7 {[%clk 0:00:04.1]} 32... Bh6 {[%clk 0:01:55.9]} 33. Ne6+
{[%clk 0:00:04.8]} 33... Kf7 {[%clk 0:01:56.5]} 34. Rh1 {[%clk 0:00:05.7]} 34...
Bf8 {[%clk 0:01:54.1]} 35. Rh7+ {[%clk 0:00:06.4]} 35... Kg8 {[%clk 0:01:54.4]}
36. Rc7 {[%clk 0:00:04.6]} 36... Bxb4 {[%clk 0:01:55.1]} 37. Rxc6 {[%clk
0:00:05.7]} 37... Rf3 {[%clk 0:01:54.6]} 38. Nd4 {[%clk 0:00:02.9]} 38... Rf2+
{[%clk 0:01:55.5]} 39. Kd3 {[%clk 0:00:03.7]} 39... Be7 {[%clk 0:01:57.3]} 40.
Re6 {[%clk 0:00:04.1]} 40... Kf8 {[%clk 0:01:58.3]} 41. Ke4 {[%clk 0:00:04.6]}
41... Rf1 {[%clk 0:01:58.2]} 42. Kd5 {[%clk 0:00:05.6]} 42... Rd1 {[%clk
0:01:58]} 43. Ke4 {[%clk 0:00:04.8]} 43... Re1+ {[%clk 0:01:58]} 44. Kd5 {[%clk
0:00:05.8]} 44... Ra1 {[%clk 0:01:54.8]} 45. Nc6 {[%clk 0:00:05.8]} 45... Rd1+
{[%clk 0:01:54.6]} 46. Kc4 {[%clk 0:00:05.5]} 46... Rc1+ {[%clk 0:01:54.4]} 47.
Kd3 {[%clk 0:00:06.4]} 47... Ba3 {[%clk 0:01:53]} 48. Rxf6+ {[%clk 0:00:06.5]}
48... Kg7 {[%clk 0:01:53.9]} 49. Rg6+ {[%clk 0:00:07.5]} 49... Kf7 {[%clk
0:01:54.5]} 50. Ne5+ {[%clk 0:00:08.4]} 50... Kf8 {[%clk 0:01:54.9]} 51. Ke4
{[%clk 0:00:08.3]} 51... Re1+ {[%clk 0:01:54.6]} 52. Kd5 {[%clk 0:00:08.8]}
52... Bb2 {[%clk 0:01:54.2]} 53. Ng4 {[%clk 0:00:06]} 53... Rd1+ {[%clk
0:01:53.2]} 54. Ke4 {[%clk 0:00:05.2]} 54... Re1+ {[%clk 0:01:54]} 55. Kf4
{[%clk 0:00:06.1]} 55... Bc1+ {[%clk 0:01:52.5]} 56. Kf3 {[%clk 0:00:07]} 56...
Rf1+ {[%clk 0:01:51.8]} 57. Ke4 {[%clk 0:00:07.6]} 57... Bb2 {[%clk 0:01:50.7]}
58. Nh6 {[%clk 0:00:04.8]} 58... Re1+ {[%clk 0:01:50.8]} 59. Kd5 {[%clk
0:00:05.5]} 59... Rd1+ {[%clk 0:01:50.5]} 60. Ke4 {[%clk 0:00:04.3]} 60... Bg7
{[%clk 0:01:48.5]} 61. Ng4 {[%clk 0:00:03.2]} 61... Rd4+ {[%clk 0:01:30.2]} 62.
Ke3 {[%clk 0:00:02.7]} 62... Ra4 {[%clk 0:01:32.1]} 63. f6 {[%clk 0:00:02.4]}
63... Bh8 {[%clk 0:01:33.1]} 64. Nh6 {[%clk 0:00:02.5]} 64... Ra3+ {[%clk
0:01:30.3]} 65. Ke4 {[%clk 0:00:02.9]} 65... Ra4+ {[%clk 0:01:31.5]} 66. Kd5
{[%clk 0:00:02.9]} 66... Ra5+ {[%clk 0:01:32.4]} 67. Ke4 {[%clk 0:00:03.8]}
67... Ra4+ {[%clk 0:01:30.9]} 68. Kf5 {[%clk 0:00:04.8]} 68... Ra5+ {[%clk
0:01:28.6]} 69. Kg4 {[%clk 0:00:06]} 69... Ra4+ {[%clk 0:01:28.2]} 70. Kg5
{[%clk 0:00:07.3]} 70... Ra5+ {[%clk 0:01:29.2]} 71. Nf5 {[%clk 0:00:08.5]}
71... Kf7 {[%clk 0:01:30.1]} 72. Rh6 {[%clk 0:00:08.3]} 72... Ke6 {[%clk
0:01:21.4]} 73. f7+ {[%clk 0:00:04.6]} 73... Kxf7 {[%clk 0:01:21.5]} 74. Rxh8
{[%clk 0:00:05.9]} 74... Ra1 {[%clk 0:01:19.3]} 75. Rh7+ {[%clk 0:00:04.6]}
75... Ke8 {[%clk 0:01:20.5]} 76. Kf6 {[%clk 0:00:05]} 76... Kd8 {[%clk
0:01:21.8]} 77. Nd6 {[%clk 0:00:03.7]} 77... Rf1+ {[%clk 0:01:21.2]} 78. Ke5
{[%clk 0:00:04.7]} 78... Re1+ {[%clk 0:01:22.6]} 79. Kd5 {[%clk 0:00:06.1]}
79... Rd1+ {[%clk 0:01:24]} 80. Kc6 {[%clk 0:00:07]} 80... Rc1+ {[%clk
0:01:25.3]} 81. Kb6 {[%clk 0:00:07.7]} 81... Rb1+ {[%clk 0:01:23.6]} 82. Nb5
{[%clk 0:00:07.3]} 82... Ke8 {[%clk 0:01:24.7]} 83. Kc6 {[%clk 0:00:07.5]} 83...
Kf8 {[%clk 0:01:25]} 84. Nc7 {[%clk 0:00:07]} 84... Kg8 {[%clk 0:01:23.9]} 85.
Re7 {[%clk 0:00:06.8]} 85... Rc1+ {[%clk 0:01:24.9]} 86. Kd7 {[%clk 0:00:07.3]}
86... Rd1+ {[%clk 0:01:26.2]} 87. Ke8 {[%clk 0:00:08.3]} 87... Ra1 {[%clk
0:01:25.2]} 88. Rd7 {[%clk 0:00:05]} 88... Re1+ {[%clk 0:01:23.9]} 89. Kd8
{[%clk 0:00:06.1]} 89... Ra1 {[%clk 0:01:23.9]} 90. Ke7 {[%clk 0:00:04.8]} 90...
Re1+ {[%clk 0:01:24.3]} 91. Ne6 {[%clk 0:00:05.7]} 91... Ra1 {[%clk 0:01:23.3]}
92. Rd2 {[%clk 0:00:04.4]} 92... Kh7 {[%clk 0:01:19.6]} 93. Rh2+ {[%clk
0:00:03.5]} 93... Kg6 {[%clk 0:01:18.7]} 94. Rg2+ {[%clk 0:00:03.4]} 94... Kh5
{[%clk 0:01:19.3]} 95. Kf6 {[%clk 0:00:03.2]} 95... Kh4 {[%clk 0:01:18.6]} 96.
Nf4 {[%clk 0:00:03.2]} 96... Ra6+ {[%clk 0:01:18.8]} 97. Kf5 {[%clk 0:00:03.8]}
97... Ra5+ {[%clk 0:01:20.1]} 98. Ke4 {[%clk 0:00:03.4]} 98... Ra4+ {[%clk
0:01:21.4]} 99. Kf3 {[%clk 0:00:03.8]} 99... Ra3+ {[%clk 0:01:22.8]} 100. Kf2
{[%clk 0:00:04.1]} 100... Ra2+ {[%clk 0:01:24]} 101. Ne2 {[%clk 0:00:05.1]}
101... Kh5 {[%clk 0:01:25.4]} 102. Rg3 {[%clk 0:00:03.7]} 102... Kh6 {[%clk
0:01:24.8]} 103. Kf3 {[%clk 0:00:04.4]} 103... Ra3+ {[%clk 0:01:25.2]} 104. Kg4
{[%clk 0:00:03]} 104... Ra4+ {[%clk 0:01:26.4]} 105. Nf4 {[%clk 0:00:03.3]}
105... Ra5 {[%clk 0:01:28.3]} 106. Rb3 {[%clk 0:00:02.6]} 106... Kg7 {[%clk
0:01:28.6]} 107. Rb6 {[%clk 0:00:03.4]} 107... Kf8 {[%clk 0:01:28.9]} 108. Ne6+
{[%clk 0:00:03.4]} 108... Kg8 {[%clk 0:01:30.1]} 109. Rb7 {[%clk 0:00:04]}
109... Kh8 {[%clk 0:01:29.9]} 110. Ng5 {[%clk 0:00:03.8]} 110... Kg8 {[%clk
0:01:31.1]} 111. Ne6 {[%clk 0:00:04]} 111... Kh8 {[%clk 0:01:31]} 112. Nd4
{[%clk 0:00:04.9]} 112... Kg8 {[%clk 0:01:31.7]} 113. Nf5 {[%clk 0:00:06.2]}
113... Kf8 {[%clk 0:01:32.2]} 114. Kg5 {[%clk 0:00:07.3]} 114... Ke8 {[%clk
0:01:33.3]} 115. Kf6 {[%clk 0:00:08.4]} 115... Kd8 {[%clk 0:01:34.6]} 116. Nd6
{[%clk 0:00:08.9]} 116... Ra1 {[%clk 0:01:34.7]} 117. Rh7 {[%clk 0:00:05.6]}
117... Rf1+ {[%clk 0:01:35.3]} 118. Nf5 {[%clk 0:00:06.7]} 118... Re1 {[%clk
0:01:37.2]} 119. Nd4 {[%clk 0:00:06.3]} 119... Kc8 {[%clk 0:01:37.2]} 120. Ne6
{[%clk 0:00:05.4]} 120... Kb8 {[%clk 0:01:36.7]} 121. Nd4 {[%clk 0:00:02.9]}
121... Kc8 {[%clk 0:01:37]} 122. Nb5 {[%clk 0:00:03.3]} 122... Kb8 {[%clk
0:01:36.3]} 123. Nc3 {[%clk 0:00:02.8]} 123... Re3 {[%clk 0:01:36.3]} 124. Nd5
{[%clk 0:00:03.7]} 124... Re1 {[%clk 0:01:37.7]} 125. Nf4 {[%clk 0:00:04.2]}
125... Re4 {[%clk 0:01:37.8]} 126. Ne6 {[%clk 0:00:04.9]} 126... Re1 {[%clk
0:01:38.8]} 127. Rd7 {[%clk 0:00:05.5]} 127... Kc8 {[%clk 0:01:39.2]} 128. Ke7
{[%clk 0:00:06.5]} 128... Kb8 {[%clk 0:01:37.6]} 129. Rd6 {[%clk 0:00:04.1]}
129... Kb7 {[%clk 0:01:37.7]} 130. Kd7 {[%clk 0:00:04.1]} 130... Rc1 {[%clk
0:01:32.9]} 131. Rd5 {[%clk 0:00:03]} 131... Kb6 {[%clk 0:01:30.6]} 132. Nd4
{[%clk 0:00:03.1]} 132... Rc7+ {[%clk 0:01:28.2]} 133. Kd6 {[%clk 0:00:03.6]}
133... Rh7 {[%clk 0:01:29.1]} 134. Rb5+ {[%clk 0:00:04.2]} 134... Ka6 {[%clk
0:01:30.5]} 135. Rb1 {[%clk 0:00:04.9]} 135... Rh6+ {[%clk 0:01:31.5]} 136. Kc5
{[%clk 0:00:05.7]} 136... Rh5+ {[%clk 0:01:32.2]} 137. Kc4 {[%clk 0:00:05.9]}
1/2-1/2

[Event "*** Titled Tuesday Blitz"]
[Site "Chess.com"]
[Date "2019.03.05"]
[Round "2"]
[White "x-6099009240"]
[Black "pedro_gines"]
[Result "1-0"]
[WhiteElo "2278"]
[BlackElo "2416"]
[TimeControl "180+2"]
[EndTime "13:30:43 PST"]
[Termination "x-6099009240 won on time"]

1. e4 {[%clk 0:03:00.4]} 1... c6 {[%clk 0:03:00]} 2. d4 {[%clk 0:03:01.6]} 2...
d5 {[%clk 0:03:00.7]} 3. exd5 {[%clk 0:03:02.7]} 3... cxd5 {[%clk 0:03:01.8]} 4.
Bf4 {[%clk 0:03:02.5]} 4... Nc6 {[%clk 0:03:02.3]} 5. c3 {[%clk 0:03:00.6]} 5...
Nf6 {[%clk 0:03:02.7]} 6. Bd3 {[%clk 0:03:00.9]} 6... Bg4 {[%clk 0:03:02.6]} 7.
Qb3 {[%clk 0:03:02.1]} 7... Qd7 {[%clk 0:03:03.2]} 8. Nd2 {[%clk 0:03:02.3]}
8... e6 {[%clk 0:03:04.3]} 9. Ngf3 {[%clk 0:03:03.4]} 9... Bd6 {[%clk
0:03:05.1]} 10. Bxd6 {[%clk 0:03:02.9]} 10... Qxd6 {[%clk 0:03:07]} 11. O-O
{[%clk 0:03:03.8]} 11... O-O {[%clk 0:03:06.9]} 12. Rfe1 {[%clk 0:03:04.8]}
12... a6 {[%clk 0:03:04.5]} 13. Ne5 {[%clk 0:03:03.1]} 13... Qc7 {[%clk
0:03:00.8]} 14. Nxc6 {[%clk 0:02:58.5]} 14... bxc6 {[%clk 0:03:00.5]} 15. Qa3
{[%clk 0:02:56.8]} 15... Nd7 {[%clk 0:02:45.8]} 16. Nb3 {[%clk 0:02:57.6]} 16...
Rab8 {[%clk 0:02:02.1]} 17. h3 {[%clk 0:02:50.6]} 17... Bh5 {[%clk 0:02:02.7]}
18. Rab1 {[%clk 0:02:45.6]} 18... Bg6 {[%clk 0:02:00.5]} 19. Bxg6 {[%clk
0:02:46.1]} 19... hxg6 {[%clk 0:02:02.4]} 20. Qa5 {[%clk 0:02:16.8]} 20... Qxa5
{[%clk 0:01:55.4]} 21. Nxa5 {[%clk 0:02:18.7]} 21... c5 {[%clk 0:01:57.2]} 22.
dxc5 {[%clk 0:02:07.6]} 22... Nxc5 {[%clk 0:01:59.1]} 23. b4 {[%clk 0:01:10.8]}
23... Ne4 {[%clk 0:00:59]} 24. Rec1 {[%clk 0:01:10.6]} 24... Rfc8 {[%clk
0:00:56.9]} 25. Rb3 {[%clk 0:00:49.5]} 25... Nd2 {[%clk 0:00:53.1]} 26. Rb2
{[%clk 0:00:40.1]} 26... Nc4 {[%clk 0:00:53.5]} 27. Nxc4 {[%clk 0:00:39.6]}
27... Rxc4 {[%clk 0:00:55.4]} 28. Rd2 {[%clk 0:00:25]} 28... Rbxb4 {[%clk
0:00:53.6]} 29. Kf1 {[%clk 0:00:10.7]} 29... Rb5 {[%clk 0:00:52.4]} 30. Ke2
{[%clk 0:00:10.5]} 30... Kf8 {[%clk 0:00:48.8]} 31. Kd3 {[%clk 0:00:11.8]} 31...
Ke7 {[%clk 0:00:50]} 32. g3 {[%clk 0:00:10.8]} 32... g5 {[%clk 0:00:50.5]} 33.
Re1 {[%clk 0:00:10.6]} 33... Rbc5 {[%clk 0:00:49.5]} 34. Rc2 {[%clk 0:00:11.1]}
34... d4 {[%clk 0:00:49.9]} 35. Re4 {[%clk 0:00:10.9]} 35... Rxc3+ {[%clk
0:00:47.2]} 36. Rxc3 {[%clk 0:00:11.5]} 36... dxc3 {[%clk 0:00:49.1]} 37. Kc2
{[%clk 0:00:10.6]} 37... a5 {[%clk 0:00:48.1]} 38. Rd4 {[%clk 0:00:09.4]} 38...
e5 {[%clk 0:00:48.2]} 39. Rd3 {[%clk 0:00:09.2]} 39... e4 {[%clk 0:00:49.4]} 40.
Rd4 {[%clk 0:00:08.8]} 40... f5 {[%clk 0:00:50.9]} 41. g4 {[%clk 0:00:09.7]}
41... g6 {[%clk 0:00:51.7]} 42. a3 {[%clk 0:00:09.5]} 42... Ke6 {[%clk
0:00:51.4]} 43. gxf5+ {[%clk 0:00:09.2]} 43... gxf5 {[%clk 0:00:53.3]} 44. Rd8
{[%clk 0:00:10.7]} 44... Ke5 {[%clk 0:00:53.3]} 45. a4 {[%clk 0:00:05.2]} 45...
Kf4 {[%clk 0:00:51.5]} 46. Rb8 {[%clk 0:00:06.5]} 46... Kf3 {[%clk 0:00:51.5]}
47. Rb5 {[%clk 0:00:08]} 47... Rc4 {[%clk 0:00:39.6]} 48. Rxf5+ {[%clk
0:00:08.7]} 48... Ke2 {[%clk 0:00:40.6]} 49. Rxa5 {[%clk 0:00:08.5]} 49... Kxf2
{[%clk 0:00:41.6]} 50. Rxg5 {[%clk 0:00:08.9]} 50... e3 {[%clk 0:00:42.6]} 51.
Rf5+ {[%clk 0:00:10.5]} 51... Kg3 {[%clk 0:00:43.4]} 52. Re5 {[%clk 0:00:10.3]}
52... Kf3 {[%clk 0:00:40.7]} 53. a5 {[%clk 0:00:11.4]} 53... e2 {[%clk
0:00:40.7]} 54. a6 {[%clk 0:00:09.9]} 54... Re4 {[%clk 0:00:35.1]} 55. Rxe4
{[%clk 0:00:10.8]} 55... Kxe4 {[%clk 0:00:33.4]} 56. a7 {[%clk 0:00:12.7]} 56...
e1=Q {[%clk 0:00:32.3]} 57. a8=Q+ {[%clk 0:00:14.6]} 57... Kd4 {[%clk
0:00:26.6]} 58. Qh8+ {[%clk 0:00:14.1]} 58... Kc4 {[%clk 0:00:25.8]} 59. Qc8+
{[%clk 0:00:13.4]} 59... Kd4 {[%clk 0:00:24.3]} 60. Qd7+ {[%clk 0:00:13.2]}
60... Kc5 {[%clk 0:00:20.7]} 61. Qc7+ {[%clk 0:00:11.4]} 61... Kd4 {[%clk
0:00:20.6]} 62. Qb6+ {[%clk 0:00:09.4]} 62... Kc4 {[%clk 0:00:21.1]} 63. Qc6+
{[%clk 0:00:10.4]} 63... Kd4 {[%clk 0:00:21.8]} 64. Qd6+ {[%clk 0:00:11.1]}
64... Kc4 {[%clk 0:00:22.6]} 65. Qd3+ {[%clk 0:00:11.8]} 65... Kb4 {[%clk
0:00:23]} 66. Qd4+ {[%clk 0:00:12.7]} 66... Kb5 {[%clk 0:00:23.9]} 67. Qxc3
{[%clk 0:00:12]} 67... Qe2+ {[%clk 0:00:22.4]} 68. Kc1 {[%clk 0:00:06.4]} 68...
Qf1+ {[%clk 0:00:21.9]} 69. Kd2 {[%clk 0:00:05.9]} 69... Qg2+ {[%clk 0:00:22.8]}
70. Kd1 {[%clk 0:00:05.2]} 70... Qf1+ {[%clk 0:00:23.7]} 71. Kc2 {[%clk
0:00:05.3]} 71... Qg2+ {[%clk 0:00:23.7]} 72. Kb3 {[%clk 0:00:05.3]} 72... Qd5+
{[%clk 0:00:25.1]} 73. Kb2 {[%clk 0:00:06.6]} 73... Qg2+ {[%clk 0:00:26.4]} 74.
Kc1 {[%clk 0:00:06.8]} 74... Qh1+ {[%clk 0:00:26.5]} 75. Kb2 {[%clk 0:00:03.8]}
75... Qh2+ {[%clk 0:00:28]} 76. Kb3 {[%clk 0:00:03.3]} 76... Kb6 {[%clk
0:00:29.4]} 77. Qd4+ {[%clk 0:00:02.5]} 77... Kc6 {[%clk 0:00:30.6]} 78. h4
{[%clk 0:00:04.4]} 78... Qh3+ {[%clk 0:00:30.8]} 79. Kc4 {[%clk 0:00:05.8]}
79... Qe6+ {[%clk 0:00:32]} 80. Kd3 {[%clk 0:00:07]} 80... Qh3+ {[%clk 0:00:32]}
81. Kd2 {[%clk 0:00:07.1]} 81... Qh2+ {[%clk 0:00:32.8]} 82. Kc3 {[%clk
0:00:07.8]} 82... Qh3+ {[%clk 0:00:33.8]} 83. Kb4 {[%clk 0:00:08.5]} 83... Kb7
{[%clk 0:00:33]} 84. Qd5+ {[%clk 0:00:08.6]} 84... Kb6 {[%clk 0:00:33.5]} 85. h5
{[%clk 0:00:10.5]} 85... Qh4+ {[%clk 0:00:33.8]} 86. Kc3 {[%clk 0:00:10.3]}
86... Qg3+ {[%clk 0:00:33.6]} 87. Kd4 {[%clk 0:00:10.4]} 87... Qg1+ {[%clk
0:00:31.6]} 88. Ke5 {[%clk 0:00:09.3]} 88... Qg5+ {[%clk 0:00:32.2]} 89. Ke6
{[%clk 0:00:08.7]} 89... Qg8+ {[%clk 0:00:32.7]} 90. Kd6 {[%clk 0:00:09.4]}
90... Qd8+ {[%clk 0:00:29.5]} 91. Ke5 {[%clk 0:00:10.2]} 91... Qg5+ {[%clk
0:00:29.5]} 92. Kd4 {[%clk 0:00:11.2]} 92... Qd2+ {[%clk 0:00:29.7]} 93. Ke4
{[%clk 0:00:12.6]} 93... Qg2+ {[%clk 0:00:30]} 94. Kd4 {[%clk 0:00:14]} 94...
Qg1+ {[%clk 0:00:30.1]} 95. Kc4 {[%clk 0:00:11.1]} 95... Qf1+ {[%clk 0:00:28]}
96. Qd3 {[%clk 0:00:08.3]} 96... Qf7+ {[%clk 0:00:29]} 97. Qd5 {[%clk
0:00:09.3]} 97... Qf1+ {[%clk 0:00:30.9]} 98. Kc3 {[%clk 0:00:08.7]} 98... Qe1+
{[%clk 0:00:30.5]} 99. Qd2 {[%clk 0:00:07.6]} 99... Qg3+ {[%clk 0:00:31.5]} 100.
Qd3 {[%clk 0:00:07]} 100... Qh2 {[%clk 0:00:31.5]} 101. Qg6+ {[%clk 0:00:06.3]}
101... Kc5 {[%clk 0:00:31.3]} 102. Qf5+ {[%clk 0:00:07]} 102... Kc6 {[%clk
0:00:31.5]} 103. Qe6+ {[%clk 0:00:07.3]} 103... Kc5 {[%clk 0:00:32.4]} 104. Qe3+
{[%clk 0:00:07.5]} 104... Kd5 {[%clk 0:00:32.5]} 105. h6 {[%clk 0:00:09.4]}
105... Qc7+ {[%clk 0:00:30.2]} 106. Kd2 {[%clk 0:00:09.2]} 106... Qh2+ {[%clk
0:00:28.7]} 107. Kd3 {[%clk 0:00:10.6]} 107... Kc6 {[%clk 0:00:27.5]} 108. Qe4+
{[%clk 0:00:10.1]} 108... Kb6 {[%clk 0:00:26.9]} 109. h7 {[%clk 0:00:09.9]}
109... Ka6 {[%clk 0:00:10.9]} 110. Qc4+ {[%clk 0:00:07.6]} 110... Ka5 {[%clk
0:00:11]} 111. Qc3+ {[%clk 0:00:08.5]} 111... Ka4 {[%clk 0:00:12.2]} 112. h8=Q
{[%clk 0:00:09.8]} 112... Qg3+ {[%clk 0:00:12.3]} 113. Kc4 {[%clk 0:00:10.4]}
113... Qc7+ {[%clk 0:00:10]} 114. Kd4 {[%clk 0:00:08.6]} 114... Qf4+ {[%clk
0:00:06.9]} 115. Kd3 {[%clk 0:00:07.3]} 115... Qf1+ {[%clk 0:00:06.3]} 116. Ke4
{[%clk 0:00:06.8]} 116... Qe2+ {[%clk 0:00:03.2]} 117. Kf5 {[%clk 0:00:07.1]}
117... Qf2+ {[%clk 0:00:03.8]} 118. Ke6 {[%clk 0:00:07.5]} 118... Qe2+ {[%clk
0:00:04.3]} 119. Qce5 {[%clk 0:00:06]} 119... Qg4+ {[%clk 0:00:04.4]} 120. Kd6
{[%clk 0:00:06.1]} 120... Qg6+ {[%clk 0:00:05]} 121. Qhf6 {[%clk 0:00:06.8]}
121... Qh7 {[%clk 0:00:04.6]} 122. Qd4+ {[%clk 0:00:06.4]} 122... Ka5 {[%clk
0:00:05.4]} 123. Qfe5+ {[%clk 0:00:06.8]} 123... Ka6 {[%clk 0:00:06.3]} 124.
Qc4+ {[%clk 0:00:06.9]} 124... Ka7 {[%clk 0:00:07.2]} 125. Qe7+ {[%clk
0:00:07.9]} 125... Kb8 {[%clk 0:00:06.2]} 126. Qxh7 {[%clk 0:00:07.1]} 1-0